bitfinex-derivatives/quotes_ETHF0:USTF0_20240925
["timestamp","ask_amount","ask_price","bid_price","bid_amount"]
[1727241189173,0.59046,2629.6,2629.4,0.38029]
[1727241189773,4.39366,2629.6,2629.3,0.38029]
[1727241190076,0.38028,2629.5,2629.3,0.38029]
[1727241190278,0.5152,2629.4,2629.3,0.38029]
[1727241190667,0.5152,2629.4,2629.1,0.485]
[1727241190984,0.5156,2629.3,2629.2,8.43252496]
[1727241195191,0.5156,2629.3,2629.2,8.05220496]
[1727241195488,0.5156,2629.3,2628.7,0.38039]
[1727241195489,12.6888,2629.3,2628.7,0.38039]
[1727241195687,2.75036,2628.9,2628.7,0.38039]
[1727241195896,2.37,2628.9,2628.7,0.38039]
[1727241196080,2.37,2628.9,2628.6,40.8]
[1727241196482,2.75036,2628.9,2628.7,8.19082034]
[1727241196680,2.37,2628.9,2628.7,8.19082034]
[1727241197093,2.75036,2628.9,2628.7,8.19082034]
[1727241197289,2.37,2628.9,2628.7,8.19082034]
[1727241197684,2.75036,2628.9,2628.7,8.19082034]
[1727241197893,2.37,2628.9,2628.7,8.19082034]
[1727241199786,2.37,2628.9,2628.7,8.19083034]
[1727241200286,0.38035,2629.0,2628.7,8.19083034]
[1727241201187,0.38036,2628.9,2628.7,7.81044034]
[1727241201489,2.75036,2629.0,2628.7,8.19083034]
[1727241202290,0.38037,2628.9,2628.7,0.38038]
[1727241203795,0.38038,2628.8,2628.5,1.0183]
[1727241203996,2.37,2628.7,2628.5,1.0183]
[1727241204298,2.7504,2628.7,2628.5,1.39871]
[1727241204498,2.7504,2628.7,2628.6,40.8]
[1727241204693,6.5544,2628.7,2628.6,40.8]
[1727241204997,6.5544,2628.7,2628.5,1.39871]
[1727241205186,2.37,2628.7,2628.6,0.38041]
[1727241205387,2.37,2628.7,2628.5,1.0183]
[1727241205587,2.37,2628.7,2628.6,0.38041]
[1727241205897,2.75039,2628.7,2628.5,1.39871]
[1727241207399,2.75039,2628.7,2628.6,0.38041]
[1727241207896,3.804,2628.7,2628.6,0.38041]
[1727241208897,4.18439,2628.7,2628.5,1.0183]
[1727241209097,0.38039,2628.7,2628.5,1.0183]
[1727241209700,53.48546282,2628.8,2628.5,1.0183]
[1727241209892,53.86584282,2628.8,2628.7,0.38039]
[1727241210097,53.86584282,2628.8,2628.6,0.3804]
[1727241210494,3.804,2628.7,2628.6,0.3804]
[1727241210692,3.804,2628.7,2628.6,0.38041]
[1727241210888,53.86584282,2628.8,2628.6,0.38041]
[1727241211098,3.804,2628.7,2628.6,0.38041]
[1727241211298,53.86584282,2628.8,2628.7,0.38039]
[1727241211299,50.27766282,2628.8,2628.7,0.38039]
[1727241211804,50.27766282,2628.8,2628.7,15.68453706]
[1727241213603,50.27766282,2628.8,2628.7,14.73354706]
[1727241213906,50.27766282,2628.8,2628.7,10.92954706]
[1727241214700,50.27766282,2628.8,2628.7,8.55954706]
[1727241216204,50.27766282,2628.8,2628.7,8.17915706]
[1727241216605,50.27766282,2628.8,2628.7,0.38039]
[1727241216991,50.27766282,2628.8,2628.7,8.26666478]
[1727241230325,51.37766282,2628.8,2628.7,8.26666478]
[1727241230511,50.27766282,2628.8,2628.7,8.26666478]
[1727241235417,50.27766282,2628.8,2628.7,13.17066478]
[1727241235727,50.27766282,2628.8,2628.7,14.12165478]
[1727241236219,50.27766282,2628.8,2628.7,13.17066478]
[1727241237516,50.27766282,2628.8,2628.7,12.07066478]
[1727241237820,59.08846282,2628.8,2628.5,1.0183]
[1727241238117,1.48041,2628.6,2628.2,0.38046]
[1727241238422,1.1,2628.3,2628.2,0.38046]
[1727241238812,1.1,2628.3,2628.2,8.53340674]
[1727241239018,1.1,2628.3,2628.2,49.33340674]
[1727241240019,1.1,2628.4,2628.3,0.38044]
[1727241240322,2.38,2628.5,2628.4,7.8050563]
[1727241240710,2.38,2628.5,2628.2,41.18046]
[1727241241222,2.38,2628.5,2628.3,7.9739689]
[1727241242320,0.99000208,2628.4,2628.3,7.9739689]
[1727241242521,0.99000208,2628.4,2628.2,41.79728468]
[1727241242724,2.38,2628.3,2628.2,40.8]
[1727241242922,3.36980159,2628.3,2628.2,40.8]
[1727241243133,3.86500312,2628.3,2628.2,40.8]
[1727241245329,3.3693913,2628.3,2628.2,41.18046]
[1727241246831,4.0683913,2628.3,2628.2,40.8]
[1727241247027,4.56400312,2628.3,2628.2,41.18046]
[1727241247229,4.06812051,2628.3,2628.2,41.18046]
[1727241248127,3.079,2628.3,2628.2,41.18046]
[1727241249033,4.06812051,2628.3,2628.2,41.18046]
[1727241249230,1.68812051,2628.3,2628.2,41.18046]
[1727241249527,0.699,2628.3,2628.2,41.18046]
[1727241252328,0.98912051,2628.4,2628.3,0.38045]
[1727241255726,0.98912051,2628.4,2628.2,40.8]
[1727241255924,0.98912051,2628.4,2628.2,41.18046]
[1727241256128,0.98912051,2628.4,2628.2,40.8]
[1727241256129,3.36912051,2628.3,2628.2,40.8]
[1727241256325,2.38,2628.3,2628.2,41.18046]
[1727241260032,3.36912051,2628.3,2628.2,41.18046]
[1727241260241,1.47932051,2628.4,2628.3,0.38045]
[1727241260730,5.28412051,2628.4,2628.3,0.38045]
[1727241260930,1.47904804,2628.4,2628.3,0.38045]
[1727241261237,5.28384804,2628.4,2628.3,0.38045]
[1727241261541,7.45323312,2628.5,2628.3,0.38045]
[1727241261838,0.98893851,2628.4,2628.3,0.38045]
[1727241262227,4.79373851,2628.4,2628.3,0.38045]
[1727241262429,3.8048,2628.4,2628.3,0.38045]
[1727241263334,7.07280312,2628.5,2628.4,0.38044]
[1727241263540,7.07127863,2628.5,2628.4,0.38044]
[1727241263839,10.87607863,2628.5,2628.4,0.38044]
[1727241264338,9.59607863,2628.5,2628.4,0.38044]
[1727241264837,5.79127863,2628.5,2628.4,0.38044]
[1727241265338,4.3078,2628.5,2628.4,0.38044]
[1727241265529,4.68822,2628.5,2628.4,0.38044]
[1727241267032,4.3078,2628.5,2628.4,0.38044]
[1727241269234,4.68822,2628.5,2628.4,0.38044]
[1727241269834,4.3078,2628.5,2628.4,0.38044]
[1727241270033,4.68822,2628.5,2628.4,0.38044]
[1727241270434,6.66822416,2628.5,2628.4,0.38044]
[1727241270647,1.98000416,2628.6,2628.5,0.38042]
[1727241271135,1.98000416,2628.7,2628.6,0.38041]
[1727241271375,2.58442728,2628.7,2628.6,0.38041]
[1727241282548,1.48442728,2628.7,2628.6,0.38041]
[1727241283452,0.99022526,2628.7,2628.6,5.18169468]
[1727241283750,0.99022526,2628.7,2628.6,4.18441]
[1727241285057,0.99022526,2628.7,2628.6,4.71941]
[1727241285659,0.99022526,2628.8,2628.6,4.339]
[1727241285939,0.99022526,2628.8,2628.7,0.38039]
[1727241286656,2.58442728,2628.9,2628.8,0.38038]
[1727241286855,1.1,2628.9,2628.8,0.38038]
[1727241287855,2.58480733,2628.9,2628.8,0.38038]
[1727241288958,1.1,2628.9,2628.8,0.38038]
[1727241291054,2.58460658,2628.9,2628.8,0.38038]
[1727241294454,0.95095,2628.8,2628.2,0.99728468]
[1727241294654,0.95095,2628.8,2627.8,2.49321172]
[1727241294655,5.25894,2628.3,2627.8,0.5769]
[1727241294853,2.08932481,2627.9,2627.8,0.4879]
[1727241295162,2.96449722,2627.9,2627.8,0.4879]
[1727241295353,2.58398722,2627.9,2627.8,0.4879]
[1727241295756,2.96449722,2627.9,2627.8,0.4879]
[1727241297366,2.58398722,2627.9,2627.8,0.4879]
[1727241297572,2.08846657,2627.9,2627.8,0.86842]
[1727241297762,0.98846657,2627.9,2627.8,0.4879]
[1727241297962,0.98846657,2627.9,2627.8,0.86842]
[1727241300252,2.08846657,2627.9,2627.8,0.4879]
[1727241300457,2.08846657,2627.9,2627.8,0.86842]
[1727241300854,2.08846657,2627.9,2627.8,0.4879]
[1727241301363,2.08846657,2627.9,2627.8,0.86842]
[1727241301561,2.08846657,2627.9,2627.8,0.4879]
[1727241301954,2.08846657,2627.9,2627.8,0.86842]
[1727241302557,1.1,2627.9,2627.8,0.86842]
[1727241302757,0.98846657,2628.1,2627.9,0.38051]
[1727241303270,2.08846657,2628.2,2627.9,0.38051]
[1727241303454,2.46893657,2628.2,2627.9,41.1805]
[1727241303659,2.46893657,2628.2,2628.0,0.38049]
[1727241304165,2.46893657,2628.2,2627.9,41.1805]
[1727241304866,2.08846657,2628.2,2628.0,0.38049]
[1727241305555,2.46892657,2628.2,2628.0,0.38049]
[1727241305762,1.1,2628.1,2627.9,41.1805]
[1727241306666,1.1,2628.1,2628.0,0.38049]
[1727241307755,0.98846657,2628.2,2628.1,0.38048]
[1727241307955,0.98846657,2628.6,2628.1,5.3712]
[1727241308163,2.08846657,2628.7,2628.5,0.38041]
[1727241308363,2.08846657,2628.7,2628.6,1.63531]
[1727241308561,2.08846657,2628.7,2628.6,1.2549]
[1727241309064,2.46885657,2628.7,2628.6,1.2549]
[1727241309258,2.08846657,2628.7,2628.6,1.2549]
[1727241310367,3.36846657,2628.7,2628.6,1.2549]
[1727241310668,3.36846657,2628.7,2628.6,1.63531]
[1727241311158,3.36846657,2628.7,2628.6,1.2549]
[1727241311367,3.74885657,2628.7,2628.6,1.2549]
[1727241312266,3.36846657,2628.7,2628.6,1.63531]
[1727241313172,3.74885657,2628.7,2628.6,1.2549]
[1727241313466,4.24437722,2628.7,2628.6,0.6397]
[1727241313861,2.76039,2628.7,2628.6,0.6397]
[1727241314255,4.24437722,2628.7,2628.6,0.6397]
[1727241314868,3.86398722,2628.7,2628.6,1.02011]
[1727241315071,1.48398722,2628.7,2628.6,1.02011]
[1727241315259,53.48546282,2628.8,2628.7,0.38039]
[1727241315260,51.26577401,2628.8,2628.7,0.38039]
[1727241315462,54.47357401,2628.8,2628.7,1.03999]
[1727241315677,53.48546282,2628.8,2628.7,1.03999]
[1727241315971,54.47357401,2628.8,2628.7,1.03999]
[1727241316867,53.48546282,2628.8,2628.7,1.64569]
[1727241321276,50.27766282,2628.8,2628.7,1.64569]
[1727241321767,50.27766282,2628.8,2628.7,42.44569]
[1727241323677,50.27766282,2628.8,2628.7,46.24969]
[1727241326290,50.27766282,2628.8,2628.7,47.20068]
[1727241327470,50.27766282,2628.8,2628.7,55.40499472]
[1727241327969,50.27766282,2628.8,2628.7,54.45400472]
[1727241330469,50.27766282,2628.8,2628.7,50.65000472]
[1727241331071,50.27766282,2628.8,2628.7,55.40499472]
[1727241331274,50.27766282,2628.8,2628.7,61.40499472]
[1727241332184,51.37766282,2628.8,2628.7,50.65000472]
[1727241333783,51.37766282,2628.8,2628.7,50.04430472]
[1727241334692,50.27766282,2628.8,2628.7,50.04430472]
[1727241339687,50.27766282,2628.8,2628.7,55.89929472]
[1727241340081,50.27766282,2628.8,2628.7,61.89929472]
[1727241342685,50.27766282,2628.8,2628.7,65.10709472]
[1727241345699,50.27766282,2628.8,2628.7,59.10709472]
[1727241351500,50.27766282,2628.8,2628.7,60.1043794]
[1727241351987,50.27766282,2628.8,2628.7,60.11609472]
[1727241352602,50.27766282,2628.8,2628.7,61.1133794]
[1727241353101,50.27766282,2628.8,2628.7,54.1015794]
[1727241353303,50.27766282,2628.8,2628.7,57.3093794]
[1727241353594,50.27766282,2628.8,2628.7,58.50989482]
[1727241353991,50.27766282,2628.8,2628.7,57.51261014]
[1727241354192,50.27766282,2628.8,2628.7,58.50884164]
[1727241354593,50.27766282,2628.8,2628.7,57.51261014]
[1727241354901,50.27766282,2628.8,2628.7,61.31661014]
[1727241355095,50.27766282,2628.8,2628.7,62.81253717]
[1727241355289,50.27766282,2628.8,2628.7,61.31661014]
[1727241355490,50.27766282,2628.8,2628.7,62.81253717]
[1727241355685,50.27766282,2628.8,2628.7,63.35069246]
[1727241356086,50.27766282,2628.8,2628.7,61.61202175]
[1727241356801,50.27766282,2628.8,2628.7,62.15020767]
[1727241357002,50.27766282,2628.8,2628.7,60.65428064]
[1727241357710,50.27766282,2628.8,2628.7,63.34955459]
[1727241358401,50.27766282,2628.8,2628.7,61.85503712]
[1727241358611,50.27766282,2628.8,2628.7,61.85517196]
[1727241358900,50.27766282,2628.8,2628.7,61.85516838]
[1727241360502,50.27766282,2628.8,2628.7,64.79893302]
[1727241361102,50.27766282,2628.8,2628.7,64.26068717]
[1727241361393,50.27766282,2628.8,2628.7,65.66061852]
[1727241361598,50.27766282,2628.8,2628.7,64.79907163]
[1727241361896,49.47063282,2628.8,2628.7,71.66105408]
[1727241362094,47.35266328,2628.8,2628.7,77.60968474]
[1727241362295,47.35266328,2628.8,2628.7,67.5538186]
[1727241362504,47.35266328,2628.8,2628.7,66.07082161]
[1727241362696,47.35266328,2628.8,2628.7,68.5628186]
[1727241363096,47.35266328,2628.8,2628.7,67.5538186]
[1727241363296,47.35266328,2628.8,2628.7,66.07082161]
[1727241363598,47.35266328,2628.8,2628.7,74.5628186]
[1727241364195,47.35266328,2628.8,2628.7,74.56265345]
[1727241364797,47.35266328,2628.8,2628.7,74.56264614]
[1727241365495,47.35266328,2628.8,2628.7,68.56264614]
[1727241365903,47.35266328,2628.8,2628.7,74.56264614]
[1727241366399,47.35266328,2628.8,2628.7,68.56264614]
[1727241366606,47.35266328,2628.8,2628.7,70.9588186]
[1727241366901,47.35266328,2628.8,2628.7,74.55018835]
[1727241367516,47.35266328,2628.8,2628.7,73.15045146]
[1727241367697,47.35266328,2628.8,2628.7,74.01184855]
[1727241367891,47.35266328,2628.8,2628.7,76.16528944]
[1727241368094,47.35266328,2628.8,2628.7,75.62691626]
[1727241368804,47.35266328,2628.8,2628.7,74.55019243]
[1727241369196,47.35266328,2628.8,2628.7,74.55021364]
[1727241371093,46.49106328,2628.8,2628.7,73.54121364]
[1727241371395,44.89009328,2628.8,2628.7,74.55025837]
[1727241371601,29.0515156,2628.8,2628.7,87.21385771]
[1727241371795,27.71994969,2628.8,2628.7,94.03374781]
[1727241371995,23.47446969,2628.8,2628.7,91.04454864]
[1727241372305,19.30183969,2628.8,2628.7,93.32688989]
[1727241372498,17.48752969,2628.8,2628.7,93.32688989]
[1727241372698,17.48752969,2628.8,2628.7,91.42490989]
[1727241372896,15.97853969,2628.8,2628.7,91.42490989]
[1727241373098,13.00352969,2628.8,2628.7,91.42490989]
[1727241373400,10.23164969,2628.8,2628.7,87.84157589]
[1727241373598,10.23164969,2628.8,2628.7,72.09247004]
[1727241373798,10.23164969,2628.8,2628.7,63.05628138]
[1727241373996,10.23164969,2628.8,2628.7,61.76200506]
[1727241374303,10.23164969,2628.8,2628.7,63.75470931]
[1727241374502,10.23164969,2628.8,2628.7,58.42989416]
[1727241374703,10.23164969,2628.8,2628.7,59.29114052]
[1727241375000,10.23164969,2628.8,2628.7,55.42801295]
[1727241375193,10.23164969,2628.8,2628.7,57.42773904]
[1727241375395,10.23164969,2628.8,2628.7,55.89278201]
[1727241375601,10.23164969,2628.8,2628.7,55.69810563]
[1727241377207,10.23164969,2628.8,2628.7,57.9260941]
[1727241377622,10.23164969,2628.8,2628.7,57.38776612]
[1727241377797,10.23164969,2628.8,2628.7,57.9261066]
[1727241378711,10.23164969,2628.8,2628.7,56.88963443]
[1727241379011,10.23164969,2628.8,2628.7,55.69822719]
[1727241379308,10.23164969,2628.8,2628.7,56.88972533]
[1727241380701,10.23164969,2628.8,2628.7,56.88987754]
[1727241380902,10.23164969,2628.8,2628.7,56.43155929]
[1727241381505,10.23164969,2628.8,2628.7,55.42255929]
[1727241381702,10.23164969,2628.8,2628.7,56.42859391]
[1727241382011,10.23164969,2628.8,2628.7,55.88105658]
[1727241382310,10.23164969,2628.8,2628.7,54.68940623]
[1727241382511,10.90634969,2628.8,2628.7,54.68940623]
[1727241382900,10.90634969,2628.8,2628.7,55.88119661]
[1727241383302,10.90634969,2628.8,2628.7,54.68940623]
[1727241383503,10.90634969,2628.8,2628.7,55.88120454]
[1727241383913,10.90634969,2628.8,2628.7,54.68940623]
[1727241386714,10.90634969,2628.8,2628.7,51.48160623]
[1727241392911,10.90634969,2628.8,2628.7,52.14520623]
[1727241393217,10.23164969,2628.8,2628.7,54.37348018]
[1727241393412,10.23164969,2628.8,2628.7,53.50762602]
[1727241393644,10.23164969,2628.8,2628.7,54.46435169]
[1727241393811,10.23164969,2628.8,2628.7,53.50762688]
[1727241395017,10.23164969,2628.8,2628.7,53.50763551]
[1727241396416,10.23164969,2628.8,2628.7,55.00281621]
[1727241397015,10.23164969,2628.8,2628.7,55.00282111]
[1727241397216,10.23164969,2628.8,2628.7,53.50765774]
[1727241397426,10.23164969,2628.8,2628.7,53.50765248]
[1727241399820,10.23164969,2628.8,2628.7,53.50766618]
[1727241400351,10.23164969,2628.8,2628.7,52.96928988]
[1727241400524,10.23164969,2628.8,2628.7,54.96217109]
[1727241400722,10.23164969,2628.8,2628.7,56.36195268]
[1727241401525,10.23164969,2628.8,2628.7,53.50767111]
[1727241401920,10.23164969,2628.8,2628.7,55.50055232]
[1727241402121,10.23164969,2628.8,2628.7,53.50767111]
[1727241402319,10.23164969,2628.8,2628.7,54.51367111]
[1727241402621,10.23164969,2628.8,2628.7,56.0088822]
[1727241403219,10.23164969,2628.8,2628.7,54.51367111]
[1727241403746,10.23164969,2628.8,2628.7,55.47055937]
[1727241404028,10.23164969,2628.8,2628.7,56.00896279]
[1727241407547,10.23164969,2628.8,2628.7,55.47055937]
[1727241407724,10.23164969,2628.8,2628.7,56.00898643]
[1727241408729,10.23164969,2628.8,2628.7,59.21678643]
[1727241411255,10.23164969,2628.8,2628.7,58.67835937]
[1727241411426,10.23164969,2628.8,2628.7,59.21683627]
[1727241411923,10.23164969,2628.8,2628.7,58.67835937]
[1727241413334,10.23164969,2628.8,2628.7,54.51377902]
[1727241413521,10.23164969,2628.8,2628.7,59.21717508]
[1727241414429,10.23164969,2628.8,2628.7,57.72157902]
[1727241415720,10.23164969,2628.8,2628.7,59.21730181]
[1727241416521,10.23164969,2628.8,2628.7,57.72168277]
[1727241417933,10.23164969,2628.8,2628.7,57.72226661]
[1727241418334,10.23164969,2628.8,2628.7,60.57720953]
[1727241419137,10.23164969,2628.8,2628.7,60.57759933]
[1727241419334,10.23164969,2628.8,2628.7,62.96457074]
[1727241420161,10.23164969,2628.8,2628.7,62.42637998]
[1727241420438,10.23164969,2628.8,2628.7,62.96541988]
[1727241421233,10.23164969,2628.8,2628.7,62.96341988]
[1727241422252,10.23164969,2628.8,2628.7,61.56191614]
[1727241422439,10.23164969,2628.8,2628.7,62.96348847]
[1727241425042,10.23164969,2628.8,2628.7,62.96669448]
[1727241427046,10.23164969,2628.8,2628.7,62.96739996]
[1727241428340,10.23164969,2628.8,2628.7,61.96339996]
[1727241428643,10.23164969,2628.8,2628.7,62.96745102]
[1727241429258,10.23164969,2628.8,2628.7,61.56587869]
[1727241429641,10.23164969,2628.8,2628.7,62.96753593]
[1727241431750,10.23164969,2628.8,2628.7,62.96795053]
[1727241432550,10.23164969,2628.8,2628.7,60.97193808]
[1727241432738,10.23164969,2628.8,2628.7,62.96836497]
[1727241433341,10.23164969,2628.8,2628.7,60.97193808]
[1727241434047,11.22306336,2628.8,2628.7,62.96844212]
[1727241434444,10.23164969,2628.8,2628.7,60.97193808]
[1727241434747,11.22306336,2628.8,2628.7,62.96855252]
[1727241435146,10.23164969,2628.8,2628.7,60.97193808]
[1727241435575,10.23164969,2628.8,2628.7,59.57015501]
[1727241435759,10.23164969,2628.8,2628.7,64.54156386]
[1727241436263,10.23164969,2628.8,2628.7,62.0506006]
[1727241436461,10.23164969,2628.8,2628.7,62.05059989]
[1727241436660,10.23164969,2628.8,2628.7,64.54376303]
[1727241436960,10.23164969,2628.8,2628.7,60.97427646]
[1727241437161,10.23164969,2628.8,2628.7,62.0528246]
[1727241437863,10.23164969,2628.8,2628.7,64.98253818]
[1727241438956,10.23164969,2628.8,2628.7,64.98280383]
[1727241439463,10.23164969,2628.8,2628.7,64.9830497]
[1727241439867,11.22306336,2628.8,2628.7,64.98311981]
[1727241440057,10.23164969,2628.8,2628.7,64.98311981]
[1727241440570,10.23164969,2628.8,2628.7,61.77531981]
[1727241440867,10.23164969,2628.8,2628.7,64.98311981]
[1727241441070,11.22306336,2628.8,2628.7,62.05333612]
[1727241441565,11.22306336,2628.8,2628.7,64.98385235]
[1727241441959,11.22306336,2628.8,2628.7,62.05406055]
[1727241442257,11.22306336,2628.8,2628.7,64.54507679]
[1727241442667,11.22306336,2628.8,2628.7,64.98384816]
[1727241443565,11.22306336,2628.8,2628.7,64.54507679]
[1727241443868,11.22306336,2628.8,2628.7,64.98385222]
[1727241444167,11.22306336,2628.8,2628.7,61.42506055]
[1727241444363,12.52716336,2628.8,2628.7,53.99056002]
[1727241444663,13.0228702,2628.8,2628.7,52.60227894]
[1727241444864,13.0228702,2628.8,2628.7,54.59968617]
[1727241445071,13.0228702,2628.8,2628.7,52.60227894]
[1727241445861,13.0228702,2628.8,2628.7,51.6012693]
[1727241446066,13.0228702,2628.8,2628.7,50.73830681]
[1727241446373,13.0228702,2628.8,2628.7,50.738292]
[1727241446761,13.0228702,2628.8,2628.7,51.98156772]
[1727241446964,13.0228702,2628.8,2628.7,53.08156772]
[1727241447163,13.0228702,2628.8,2628.7,58.28677495]
[1727241447164,10.23164969,2628.8,2628.7,58.28677495]
[1727241447474,10.23164969,2628.8,2628.7,58.94376254]
[1727241448766,11.22503329,2628.8,2628.7,58.94376254]
[1727241448967,11.22503329,2628.8,2628.7,61.33257725]
[1727241449571,10.23164969,2628.8,2628.7,63.78648114]
[1727241449777,10.23164969,2628.8,2628.7,60.41369774]
[1727241449968,10.23164969,2628.8,2628.7,61.80776246]
[1727241450373,10.23164969,2628.8,2628.7,62.24643311]
[1727241450877,10.23164969,2628.8,2628.7,59.85723134]
[1727241451061,10.23164969,2628.8,2628.7,62.24570869]
[1727241451369,0.699,2629.1,2629.0,1.33123]
[1727241451570,0.699,2629.1,2629.0,12.58414397]
[1727241451775,0.699,2629.1,2629.0,30.50670202]
[1727241451973,0.699,2629.1,2629.0,34.76460459]
[1727241452174,0.699,2629.1,2629.0,36.81573872]
[1727241452475,0.699,2629.1,2629.0,35.86485872]
[1727241452660,0.699,2629.1,2629.0,25.62045577]
[1727241452860,0.699,2629.1,2629.0,29.86284702]
[1727241454174,0.699,2629.4,2629.3,0.38031]
[1727241454368,0.699,2629.4,2629.3,4.70924142]
[1727241454369,0.9933836,2629.4,2629.3,4.70924142]
[1727241454570,0.9933836,2629.4,2629.3,12.49259863]
[1727241454775,2.3207836,2629.5,2629.3,12.49259863]
[1727241454966,2.3207836,2629.5,2629.4,0.99718888]
[1727241455375,2.3207836,2629.5,2629.4,8.78054609]
[1727241455575,2.3207836,2629.5,2629.4,9.43364609]
[1727241455778,6.1239836,2629.5,2629.4,7.78335721]
[1727241455967,3.43732051,2629.5,2629.4,7.78335721]
[1727241456767,1.9502,2629.5,2629.4,7.78335721]
[1727241457275,2.9425096,2629.5,2629.4,7.78335721]
[1727241457679,1.9502,2629.5,2629.4,7.78335721]
[1727241458074,1.9502,2629.5,2629.4,8.16364721]
[1727241458381,2.94243753,2629.5,2629.4,8.16364721]
[1727241461175,2.94243753,2629.5,2629.4,7.78335721]
[1727241462690,2.94243753,2629.5,2629.4,8.16364721]
[1727241462891,2.94243753,2629.5,2629.4,7.78335721]
[1727241463976,2.94243753,2629.5,2629.4,8.16364721]
[1727241467287,2.31963753,2629.5,2629.4,8.16364721]
[1727241468289,2.31963753,2629.5,2629.4,7.78335721]
[1727241468789,2.31963753,2629.5,2629.4,8.16364721]
[1727241468992,1.69123753,2629.5,2629.4,8.16364721]
[1727241469289,1.69123753,2629.5,2629.4,8.76514721]
[1727241470182,0.699,2629.5,2629.4,8.76514721]
[1727241473382,0.699,2629.5,2629.4,8.38485721]
[1727241473796,1.69123753,2629.5,2629.4,8.38485721]
[1727241473994,1.69123753,2629.5,2629.4,8.76514721]
[1727241474297,1.69123753,2629.5,2629.4,8.38485721]
[1727241475594,1.69123753,2629.5,2629.4,8.76514721]
[1727241477689,1.69123753,2629.5,2629.4,7.78335721]
[1727241478486,1.69123753,2629.5,2629.4,8.16364721]
[1727241480601,0.699,2629.5,2629.4,13.02683609]
[1727241481104,0.699,2629.5,2629.4,53.82683609]
[1727241481490,0.699,2629.5,2629.4,52.82964721]
[1727241482000,0.699,2629.5,2629.4,50.61984721]
[1727241482400,0.699,2629.5,2629.4,51.61703609]
[1727241482605,0.699,2629.5,2629.4,50.61984721]
[1727241484396,0.699,2629.5,2629.4,51.61703609]
[1727241484607,0.699,2629.5,2629.4,54.82483609]
[1727241487304,0.99223753,2630.1,2629.6,0.95066]
[1727241487506,2.33782735,2630.3,2630.0,5.30371355]
[1727241487507,0.99223753,2630.3,2630.0,5.30371355]
[1727241487713,0.99223753,2630.4,2630.3,0.38016]
[1727241487910,0.99223753,2630.6,2630.4,0.38015]
[1727241488203,0.99223753,2630.7,2630.5,8.20879403]
[1727241489006,0.99223753,2630.7,2630.6,0.647]
[1727241489395,3.8016,2630.7,2630.6,8.43228744]
[1727241492906,1.63783753,2630.9,2630.6,9.91239744]
[1727241493207,0.6456,2630.9,2630.6,10.14938744]
[1727241493525,0.6456,2630.9,2630.7,40.8]
[1727241493906,1.02568,2630.9,2630.7,40.8]
[1727241494100,0.6456,2630.9,2630.7,40.8]
[1727241496006,0.6456,2630.9,2630.8,0.38009]
[1727241496210,0.99223753,2631.1,2630.8,1.1]
[1727241496419,0.99223753,2631.1,2630.8,1.48008]
[1727241496713,0.99223753,2631.1,2630.9,0.6306]
[1727241497111,2.61106753,2631.2,2630.9,0.6306]
[1727241498013,0.99223753,2631.1,2630.9,0.6306]
[1727241498212,2.72592051,2631.2,2630.9,0.6306]
[1727241498213,2.23103753,2631.2,2630.9,0.6306]
[1727241498434,2.23103753,2631.2,2630.9,2.11066]
[1727241498617,1.2388,2631.2,2630.9,2.11066]
[1727241498918,1.61883,2631.2,2631.0,7.86052543]
[1727241499411,1.2388,2631.2,2631.0,7.86052543]
[1727241500612,1.2388,2631.2,2631.0,8.24057543]
[1727241501712,1.2388,2631.2,2631.0,7.86052543]
[1727241502112,1.2388,2631.2,2631.0,8.24058543]
[1727241503318,1.2388,2631.2,2631.0,7.86052543]
[1727241503512,1.61883,2631.2,2631.0,7.86052543]
[1727241503820,5.28085,2631.1,2631.0,7.86052543]
[1727241504208,11.28085,2631.1,2631.0,7.86052543]
[1727241504409,0.38008,2630.9,2630.3,1.7155]
[1727241504620,1.5199,2630.8,2630.4,40.8]
[1727241504816,0.8586,2630.7,2630.6,8.59009715]
[1727241505021,0.8586,2630.7,2630.6,0.38011]
[1727241505316,0.8586,2630.7,2630.6,8.59009715]
[1727241507428,0.8586,2630.7,2630.6,8.20998715]
[1727241507719,12.1403,2630.7,2630.6,8.20998715]
[1727241508183,4.6602,2630.7,2630.6,8.20998715]
[1727241508316,5.0403,2630.7,2630.6,8.20998715]
[1727241508823,4.6602,2630.7,2630.6,8.20998715]
[1727241509019,4.6602,2630.7,2630.6,8.59010715]
[1727241509210,4.6602,2630.7,2630.6,8.20998715]
[1727241510925,5.0403,2630.7,2630.6,8.20998715]
[1727241512023,4.6602,2630.7,2630.6,8.59010715]
[1727241513821,0.38012,2630.6,2630.4,41.18014]
[1727241514027,4.18172,2630.6,2630.4,0.38014]
[1727241514324,3.8016,2630.5,2630.4,0.38014]
[1727241514754,3.8016,2630.5,2630.4,8.1904827]
[1727241516427,1.23871,2630.7,2630.5,0.38012]
[1727241516726,3.8016,2630.6,2630.5,0.38012]
[1727241517030,4.18172,2630.6,2630.4,9.2904827]
[1727241517234,1.23871,2630.7,2630.5,0.38013]
[1727241517623,4.6602,2630.7,2630.5,0.38013]
[1727241517818,3.8016,2630.6,2630.5,0.38013]
[1727241518045,4.6602,2630.7,2630.5,0.38013]
[1727241519031,4.6602,2630.7,2630.6,0.38012]
[1727241519226,0.8586,2630.7,2630.6,0.38012]
[1727241519426,3.8016,2630.7,2630.6,0.38012]
[1727241519621,3.8016,2630.7,2630.6,1.23082]
[1727241520027,3.8016,2630.7,2630.6,0.8507]
[1727241520227,3.8016,2630.7,2630.6,1.23082]
[1727241521035,1.5199,2630.8,2630.6,1.23082]
[1727241521262,2.51213753,2630.8,2630.6,1.23082]
[1727241522528,2.89222753,2630.8,2630.6,1.23082]
[1727241522732,6.69382753,2630.8,2630.6,0.38012]
[1727241523527,6.31373753,2630.8,2630.7,0.3801]
[1727241523727,1.5199,2630.8,2630.7,0.3801]
[1727241523933,5.3207,2630.8,2630.7,0.3801]
[1727241524237,6.80782051,2630.8,2630.7,0.3801]
[1727241525740,6.80782051,2630.8,2630.5,1.6839]
[1727241525741,7.18791051,2630.8,2630.6,0.38011]
[1727241525938,0.99163645,2630.7,2630.6,0.38011]
[1727241527837,0.99163645,2630.8,2630.7,0.3801]
[1727241528241,3.24130735,2630.9,2630.7,0.3801]
[1727241528739,1.48817117,2630.8,2630.7,0.3801]
[1727241529142,5.28897117,2630.8,2630.7,0.3801]
[1727241530536,5.28897117,2630.8,2630.5,1.6839]
[1727241530537,6.16371735,2630.8,2630.5,1.6839]